bitfinex/quotes_ETHUSD_20260308
["timestamp","ask_amount","ask_price","bid_price","bid_amount"]
[1772990829927,0.05163861,1939.9,1939.3,0.47890614]
[1772990830117,0.05163861,1939.9,1939.2,1.29025788]
[1772990830318,0.05263861,1939.9,1939.2,1.29025788]
[1772990830544,0.05263861,1939.9,1939.2,1.76916402]
[1772990831041,0.05163861,1939.7,1939.2,0.0011]
[1772990831815,0.05163861,1939.7,1939.2,1.29028245]
[1772990833017,0.05163861,1939.7,1939.2,1.76918859]
[1772990833216,0.05163861,1939.6,1939.2,1.76918859]
[1772990833542,0.05163861,1939.6,1939.2,0.48000614]
[1772990833744,0.05163861,1939.6,1939.2,1.76919367]
[1772990834440,0.05163861,1939.6,1939.2,0.48000614]
[1772990835448,1.34058146,1939.6,1939.2,0.48000614]
[1772990835948,0.05163861,1939.5,1939.2,0.48000614]
[1772990838952,0.05163861,1939.4,1939.0,0.0011]
[1772990839823,0.05053861,1939.2,1939.0,0.0011]
[1772990840023,1.33966355,1939.3,1939.0,0.0011]
[1772990841349,0.05053861,1939.2,1939.0,0.0011]
[1772990844036,1.33973624,1939.2,1939.0,0.0011]
[1772990844238,0.05053861,1939.1,1938.6,1.76847008]
[1772990844449,0.05053861,1939.1,1938.5,0.47890614]
[1772990844652,0.04943861,1939.0,1938.6,1.76849656]
[1772990847247,1.33878692,1939.0,1938.6,0.47890614]
[1772990847430,1.33878692,1939.0,1938.6,1.76849164]
[1772990847754,1.28934831,1939.0,1938.6,1.76849164]
[1772990847961,0.04943861,1938.9,1938.5,0.47890614]
[1772990848559,0.04943861,1938.9,1938.4,0.0011]
[1772990848963,0.04943861,1938.9,1938.4,0.48000614]
[1772990849360,1.338896,1938.8,1938.4,0.48000614]
[1772990850747,0.04943861,1938.7,1938.4,0.0011]
[1772990851957,1.28945739,1938.8,1938.4,0.48000614]
[1772990851958,1.33892427,1938.8,1938.4,0.48000614]
[1772990852130,1.33891362,1938.8,1938.4,0.48000614]
[1772990852337,0.04943861,1938.7,1938.4,0.48000614]
[1772990855373,1.33897026,1938.7,1938.5,0.0011]
[1772990855960,0.04943861,1938.6,1938.5,0.0011]
[1772990857542,1.33902903,1938.6,1938.5,0.0011]
[1772990857968,1.28959042,1938.6,1938.5,0.0011]
[1772990858664,1.424,1938.9,1938.5,0.48906527]
[1772990858860,1.47343861,1938.9,1938.5,0.48906527]
[1772990859064,0.04943861,1938.8,1938.5,0.48906527]
[1772990859964,1.2895239,1938.7,1938.5,0.48906527]
[1772990861473,4.16882635,1939.0,1938.5,1.77871301]
[1772990861643,5.59482635,1939.0,1938.6,0.48796527]
[1772990861846,2.76482635,1939.0,1938.6,0.48796527]
[1772990862157,0.04943861,1938.9,1938.6,0.48796527]
[1772990864876,1.28945739,1938.8,1938.6,0.48796527]
[1772990866075,1.33886346,1938.9,1938.6,0.48796527]
[1772990867181,0.001,1938.8,1938.6,0.48796527]
[1772990874479,1.28937682,1939.0,1938.7,0.48796527]
[1772990879409,1.28937682,1939.0,1938.7,0.48906527]
[1772990879611,0.001,1938.9,1938.7,0.48906527]
[1772990882914,1.28928255,1939.1,1938.9,0.47428069]
[1772990888312,1.28912873,1939.3,1939.0,0.48508629]
[1772990888622,1.49043861,1939.4,1939.0,0.48508629]
[1772990888782,2.77952244,1939.4,1939.0,0.48508629]
[1772990889313,2.77952244,1939.4,1938.9,1.77444528]
[1772990889314,2.77652244,1939.4,1938.9,1.77444528]
[1772990889504,2.77652244,1939.4,1939.0,0.48508629]
[1772990890922,2.77652244,1939.4,1939.0,0.48618629]
[1772990893401,1.29008383,1939.4,1939.0,0.48618629]
[1772990893719,0.001,1939.4,1939.1,0.48508629]
[1772990893905,1.29006412,1939.4,1939.1,0.48508629]
[1772990894295,0.001,1939.4,1939.1,0.48508629]
[1772990894730,0.05143861,1939.3,1939.0,0.0011]
[1772990895096,1.28919141,1939.2,1939.0,0.0011]
[1772990895300,1.34061675,1939.3,1939.0,0.0011]
[1772990897725,0.001,1939.4,1939.0,0.48618629]
[1772990898030,1.29006011,1939.4,1939.0,0.48618629]
[1772990898702,0.05143861,1939.3,1939.0,0.48618629]
[1772990902734,1.29006011,1939.4,1939.0,0.48618629]
[1772990903032,0.001,1939.4,1939.1,0.48508629]
[1772990903438,0.001,1939.3,1939.1,0.48508629]
[1772990908034,0.05143861,1939.2,1938.9,0.0011]
[1772990908233,0.05143861,1939.0,1938.7,0.0011]
[1772990908528,0.05143861,1939.0,1938.7,0.0033]
[1772990909109,1.443,1939.2,1938.7,0.48838629]
[1772990909312,0.05243861,1939.3,1938.7,0.48838629]
[1772990909515,0.05143861,1939.2,1938.7,0.48838629]
[1772990910338,1.2892579,1939.1,1938.7,0.48838629]
[1772990911440,1.34069651,1939.1,1938.7,0.48838629]
[1772990915547,1.34069651,1939.1,1938.8,0.0011]
[1772990917419,1.34069651,1939.1,1938.8,0.49363718]
[1772990919450,1.34069651,1939.1,1938.8,0.49583718]
[1772990923252,1.2892579,1939.1,1938.8,0.0033]
[1772990923453,0.45807491,1938.9,1938.2,0.49363718]
[1772990923642,0.45807491,1938.5,1938.2,0.49363718]
[1772990923957,1.28959042,1938.6,1938.2,0.49363718]
[1772990924155,1.74766533,1938.6,1938.3,0.49363718]
[1772990924353,1.74764354,1938.7,1938.3,0.49363718]
[1772990925538,0.45807491,1938.6,1938.3,0.0011]
[1772990925754,1.28965695,1938.5,1938.3,0.0011]
[1772990927154,1.28965695,1938.5,1938.4,0.0011]
[1772990927960,5.61645781,1938.6,1938.4,0.0011]
[1772990927961,1.74771511,1938.6,1938.4,0.0011]
[1772990929057,1.2896402,1938.6,1938.4,0.0011]
[1772990929231,0.45807491,1938.5,1938.4,0.0011]
[1772990929857,1.74773186,1938.5,1938.4,0.0011]
[1772990930074,1.28965695,1938.5,1938.3,0.33958704]
[1772990930859,1.74773186,1938.5,1938.3,0.0011]
[1772990934467,0.45807491,1938.5,1938.3,0.0011]
[1772990934635,1.74773853,1938.5,1938.3,0.0011]
[1772990937550,0.5,1938.4,1938.1,0.0011]
[1772990937954,0.5,1938.3,1937.8,0.0011]
[1772990938149,0.5,1938.2,1937.8,0.0011]
[1772990938347,0.5,1938.0,1937.8,0.0011]
[1772990939439,0.5,1938.2,1937.8,0.0011]
[1772990939637,1.03539255,1938.8,1937.8,0.0011]
[1772990939638,1.951,1938.4,1937.8,0.0011]
[1772990939849,1.951,1938.4,1938.1,0.0011]
[1772990940861,0.5,1938.3,1938.1,0.0011]
[1772990941466,1.951,1938.4,1938.1,0.0011]
[1772990941849,3.24074561,1938.4,1938.1,0.0011]
[1772990943265,0.5,1938.3,1938.1,0.0011]
[1772990946677,1.78979233,1938.3,1938.1,0.0011]
[1772990947765,0.5,1938.3,1938.1,0.0011]
[1772990947962,1.451,1938.4,1938.1,0.0011]
[1772990948273,3.24072819,1938.4,1938.1,0.0011]
[1772990950378,0.5,1938.3,1938.1,0.0011]
[1772990951160,0.001,1938.5,1938.2,0.0011]
[1772990955484,0.001,1938.5,1938.2,1.29095656]
[1772990957966,0.5,1938.8,1938.2,1.29095656]
[1772990960389,0.50253886,1939.0,1938.2,1.29095656]
[1772990963764,0.501,1938.9,1938.2,1.29095656]
[1772990973558,0.5,1938.8,1938.2,1.29095656]
[1772990975830,0.5,1938.8,1938.3,0.0011]
[1772990976033,0.501,1938.8,1938.3,0.0011]
[1772990984752,0.5,1938.7,1938.3,0.0011]
[1772990984951,0.5,1938.6,1938.3,0.0011]
[1772990989104,0.5,1938.5,1938.3,0.0011]
[1772990999609,0.5,1938.5,1938.4,0.0011]
[1772990999810,0.501,1938.5,1938.4,0.0011]
[1772991000929,0.49945,1938.4,1938.1,0.0011]
[1772991001290,0.49945,1938.3,1938.1,0.0011]
[1772991007107,0.4989,1938.2,1937.9,0.0011]
[1772991007284,0.4989,1938.4,1938.0,0.0022]
[1772991007605,0.4999,1938.5,1938.0,0.0022]
[1772991012216,0.4999,1938.5,1938.1,0.0011]
[1772991012596,0.4999,1938.4,1938.1,0.0011]
[1772991014689,0.4999,1938.4,1938.1,0.0033]
[1772991018321,0.4999,1938.4,1938.1,0.0011]
[1772991020625,0.001,1938.8,1938.3,2.62096946]
[1772991020814,0.48376194,1938.8,1938.2,0.48712482]
[1772991021123,0.48276194,1938.7,1938.2,0.48712482]
[1772991021326,0.48276194,1938.7,1938.1,0.0011]
[1772991021622,0.48276194,1938.7,1938.1,0.48822482]
[1772991022803,0.48276194,1938.6,1938.2,1.77698138]
[1772991024424,0.48376194,1938.6,1938.2,1.77698138]
[1772991025931,0.48376194,1938.6,1938.3,0.48712482]
[1772991027437,0.48376194,1938.6,1938.3,1.77689798]
[1772991030737,0.48376194,1938.6,1938.3,1.28977316]
[1772991031144,0.48376194,1938.6,1938.3,1.77689798]
[1772991033151,0.001,1938.8,1938.4,0.46238056]
[1772991034121,0.00253886,1939.0,1938.5,0.46238056]
[1772991034456,0.00253886,1939.0,1938.6,1.28959042]
[1772991034656,0.00253886,1939.0,1938.7,0.46238056]
[1772991037126,0.00253886,1939.0,1938.8,1.75183795]
[1772991038465,0.00253886,1939.0,1938.9,0.46238056]
[1772991039346,1.78514319,1939.3,1938.9,0.46238056]
[1772991040526,1.78514319,1939.3,1938.9,1.75176455]
[1772991042686,0.001,1939.3,1939.0,0.46238056]
[1772991043987,0.001,1939.3,1939.2,0.46238056]
[1772991045177,0.49500771,1939.7,1939.3,0.46238056]
[1772991045868,0.49500771,1939.7,1939.4,0.46238056]
[1772991046061,0.49500771,1939.7,1939.3,1.28906705]
[1772991046381,0.49500771,1939.7,1938.9,0.46238056]
[1772991047769,0.001,1939.2,1938.9,0.46238056]
[1772991047967,0.49500771,1939.6,1939.1,0.46238056]
[1772991048487,0.49500771,1939.7,1939.1,0.46238056]
[1772991048897,0.49500771,1939.7,1938.9,1.28933894]
[1772991049201,0.49500771,1939.7,1939.0,0.46238056]
[1772991050386,1.78393326,1939.6,1939.2,0.46238056]
[1772991050971,0.49500771,1939.5,1939.2,0.46238056]
[1772991055900,0.49500771,1939.5,1939.2,1.75155276]
[1772991056580,0.49500771,1939.5,1939.2,0.46238056]
[1772991058102,0.49500771,1939.5,1939.2,1.75151985]
[1772991059812,0.49500771,1939.5,1939.2,1.75261985]
[1772991060999,0.001,1939.6,1939.3,0.46238056]
[1772991061203,0.001,1939.9,1939.2,1.29023929]
[1772991061413,0.49600771,1939.9,1939.3,0.46238056]
[1772991061716,0.49500771,1939.8,1939.3,0.46238056]
[1772991062505,0.49500771,1939.8,1939.5,0.46238056]
[1772991062782,0.47942764,1939.7,1939.3,1.78388416]
[1772991063499,0.47942764,1939.7,1939.4,0.49476162]
[1772991065789,0.47942764,1939.7,1939.4,1.78380112]
[1772991065986,1.75903001,1939.9,1939.5,0.48709793]
[1772991066188,0.001,1939.9,1939.5,0.48709793]
[1772991066620,0.00153886,1940.0,1939.5,0.48709793]
[1772991068190,0.00153886,1940.0,1939.7,0.48709793]
[1772991069814,0.001,1940.2,1939.8,0.48709793]
[1772991070031,0.46925349,1940.7,1939.6,2.48192555]
[1772991070231,0.46925349,1940.7,1939.9,0.48709793]
[1772991070530,0.46925349,1940.7,1940.1,0.48709793]
[1772991070691,0.001,1940.6,1940.1,0.48709793]
[1772991071109,0.46925349,1940.5,1939.7,1.8136736]
[1772991071315,0.47025349,1940.5,1939.7,1.8136736]
[1772991071715,0.47025349,1940.5,1939.8,0.48709793]
[1772991072346,0.46925349,1940.3,1939.9,0.48709793]
[1772991073120,0.001,1940.2,1939.9,0.48709793]
[1772991073343,0.001,1940.3,1939.9,0.48709793]
[1772991073916,0.47025349,1940.3,1939.9,0.48709793]
[1772991075223,1.75871924,1940.3,1939.9,0.48709793]
[1772991075542,0.001,1940.4,1940.0,0.48709793]
[1772991075717,0.002,1940.4,1940.0,0.48709793]
[1772991077240,0.002,1940.4,1940.1,1.7756913]
[1772991077541,0.002,1940.4,1940.2,0.48709793]
[1772991080635,0.001,1940.3,1940.2,0.48709793]
[1772991082065,0.001,1940.4,1940.2,0.48709793]
[1772991082268,0.001,1940.3,1940.2,0.48709793]
[1772991082447,0.001,1940.3,1940.2,1.77562488]
[1772991083043,5.15355864,1940.8,1940.3,0.48709793]
[1772991083044,0.47025349,1940.8,1940.3,0.48709793]
[1772991083364,0.001,1940.7,1940.3,0.48709793]
[1772991084137,0.47025349,1940.6,1940.3,0.001]
[1772991084336,0.46925349,1940.6,1940.3,0.001]
[1772991084549,0.46925349,1940.5,1940.3,0.001]
[1772991084874,0.47125349,1940.4,1940.3,0.001]
[1772991086386,0.47125349,1940.4,1940.0,0.001]
[1772991086591,0.46925349,1940.2,1939.6,0.48709793]
[1772991088465,0.46925349,1940.1,1939.7,1.2888591]
[1772991088677,0.46925349,1940.1,1939.7,1.77595703]
[1772991090188,0.46925349,1940.1,1939.7,1.2888591]
[1772991091494,1.75791328,1940.0,1939.6,1.77597334]
[1772991091704,0.46925349,1939.9,1939.6,0.48709793]
[1772991092265,1.75789225,1940.1,1939.7,0.48709793]
[1772991092768,1.28863876,1940.1,1939.7,0.48709793]
[1772991092993,0.47000187,1940.0,1939.7,0.48709793]
[1772991095792,1.75867211,1940.0,1939.7,0.48709793]
[1772991096606,0.47000187,1940.0,1939.7,0.48709793]
[1772991098117,0.47000187,1940.0,1939.8,0.001]
[1772991098507,0.002,1939.9,1939.8,0.001]
[1772991103835,0.47200187,1939.9,1939.8,0.001]
[1772991104132,0.47200187,1939.9,1939.7,0.001]
[1772991104636,1.76073146,1939.9,1939.7,0.001]
[1772991106333,0.47000187,1939.8,1939.7,0.001]
[1772991107936,0.47000187,1939.8,1939.4,0.0011]
[1772991107937,0.47000187,1939.7,1939.4,0.0011]
[1772991108232,0.47000187,1939.7,1939.4,0.0022]
[1772991108433,1.28879265,1939.8,1939.4,0.45596306]
[1772991108434,1.75879452,1939.8,1939.4,0.45596306]
[1772991108742,0.47000187,1939.8,1939.4,0.45596306]
[1772991108941,1.76077954,1939.9,1939.5,0.45376306]
[1772991109239,0.47000187,1939.8,1939.5,0.45376306]
[1772991111708,0.47200187,1939.9,1939.6,1.28892555]
[1772991111936,0.47200187,1939.9,1939.5,1.74490154]
[1772991112140,0.001,1939.7,1939.5,1.74490154]
[1772991113015,0.001,1939.7,1939.6,0.45376306]
[1772991113828,0.47200187,1939.9,1939.6,0.45376306]
[1772991114145,0.47000187,1939.8,1939.5,0.0022]
[1772991116374,1.2888591,1939.7,1939.5,0.0022]
[1772991117936,1.75886097,1939.7,1939.5,0.0022]
[1772991119370,0.47000187,1939.6,1939.5,0.0022]
[1772991122985,1.29075432,1939.9,1939.5,0.46619798]
[1772991123156,1.78424459,1939.9,1939.5,0.46619798]
[1772991123690,0.49549027,1939.9,1939.5,0.46619798]
[1772991123897,1.78422852,1939.9,1939.5,1.75518447]
[1772991124082,0.001,1939.7,1939.5,1.75518447]
[1772991124686,0.002,1939.9,1939.6,0.46399798]
[1772991124891,1.29072788,1939.9,1939.6,0.46509798]
[1772991125185,1.78747936,1939.9,1939.6,0.46509798]
[1772991126071,0.49675148,1939.8,1939.5,0.0011]
[1772991126253,0.49675148,1939.8,1939.5,0.0022]
[1772991127763,0.002,1939.9,1939.6,0.49514745]
[1772991128592,0.002,1939.9,1939.7,0.49624745]
[1772991133084,0.002,1939.9,1939.8,0.49514745]
[1772991134895,0.002,1940.2,1939.8,0.49514745]
[1772991135095,1.78495229,1940.7,1940.0,0.49514745]
[1772991135272,0.49675148,1940.5,1940.0,0.49514745]
[1772991136460,0.49875148,1940.6,1940.2,0.49514745]
[1772991137262,0.49875148,1940.6,1940.3,1.28846054]
[1772991141695,0.49875148,1940.6,1940.3,1.28956054]
[1772991142298,0.49875148,1940.6,1940.4,0.49514745]
[1772991142299,0.002,1940.6,1940.4,0.49514745]
[1772991142614,0.49875148,1940.6,1940.3,1.28956054]
[1772991144705,0.49875148,1940.6,1940.3,0.49624745]
[1772991147100,0.49875148,1940.6,1940.3,1.78468407]
[1772991147823,0.49875148,1940.6,1940.4,0.001]
[1772991148118,0.002,1940.5,1940.4,0.001]
[1772991150613,0.001,1940.8,1940.5,0.49624745]
[1772991151493,0.49675148,1940.7,1940.4,0.001]
[1772991151694,0.49675148,1940.7,1940.4,0.0021]
[1772991158135,0.46782031,1940.6,1940.4,0.0021]
[1772991158343,0.46782031,1940.6,1940.4,0.001]
[1772991160018,0.46782031,1940.6,1940.5,0.001]
[1772991160337,1.75808167,1940.6,1940.5,0.001]
[1772991161523,1.75808167,1940.6,1940.5,0.0021]
[1772991162626,1.75808167,1940.6,1940.5,0.001]
[1772991165953,1.75808167,1940.6,1940.5,0.0021]
[1772991166159,0.46782031,1940.5,1940.3,0.001]
[1772991169460,1.75615132,1940.5,1940.3,0.001]
[1772991172564,1.75811522,1940.6,1940.3,0.48318888]
[1772991173254,1.75811522,1940.6,1940.4,0.001]
[1772991173651,0.002,1940.5,1940.4,0.001]
[1772991177922,0.002,1940.5,1940.2,0.001]
[1772991177923,0.46982031,1940.5,1940.2,0.001]
[1772991179787,1.75621445,1940.4,1940.2,0.001]
[1772991180190,0.46782031,1940.3,1940.2,0.001]
[1772991180593,1.28839414,1940.4,1940.2,0.001]
[1772991180919,1.75621445,1940.4,1940.2,0.001]
[1772991186924,1.75821445,1940.4,1940.3,0.001]
[1772991193127,0.002,1940.4,1940.2,0.49311095]
[1772991199036,0.002,1940.4,1940.3,0.001]
[1772991200039,0.49054733,1940.4,1940.3,0.001]
[1772991200542,0.49054733,1940.4,1940.2,0.001]
[1772991201643,1.77700787,1940.3,1940.2,0.001]
[1772991202709,1.77700787,1940.3,1940.1,0.001]
[1772991205946,0.48854733,1940.2,1940.1,0.001]
[1772991206644,0.48854733,1940.1,1939.6,0.0011]
[1772991206847,0.48854733,1940.0,1939.6,0.0011]
[1772991208347,0.48854733,1940.0,1939.6,0.49311095]
[1772991208550,1.93454733,1940.1,1939.6,0.49311095]
[1772991209049,1.77720712,1940.0,1939.6,0.49311095]
[1772991209921,0.48854733,1939.9,1939.5,0.0011]
[1772991211132,1.28879265,1939.8,1939.5,0.49421095]
[1772991212036,1.77733998,1939.8,1939.5,0.49421095]
[1772991212757,0.48854733,1939.8,1939.5,0.49421095]
[1772991213142,0.46719953,1939.7,1939.5,0.0011]
[1772991215468,0.46719953,1939.8,1939.5,0.46710769]
[1772991217474,1.2888591,1939.7,1939.5,0.46710769]
[1772991218055,1.75605863,1939.7,1939.5,0.0011]
[1772991218646,0.46719953,1939.6,1939.5,0.0011]
[1772991219585,0.46719953,1939.5,1939.3,0.0011]
[1772991222278,0.46719953,1939.3,1938.9,0.0011]
[1772991222443,0.46719953,1939.3,1938.5,0.16264251]
[1772991222778,0.46719953,1939.2,1938.6,0.16154251]
[1772991222977,0.46719953,1939.2,1938.5,0.0011]
[1772991224569,0.46719953,1939.0,1938.5,0.0011]
[1772991227877,0.46719953,1938.8,1938.5,0.16264251]
[1772991230062,1.75667781,1938.8,1938.5,0.16264251]
[1772991230375,0.46719953,1938.7,1938.5,0.0011]
[1772991230679,1.75667781,1938.8,1938.5,0.16264251]
[1772991231585,1.7566171,1938.9,1938.5,0.16264251]
[1772991235279,0.46719953,1938.8,1938.5,0.16264251]
[1772991236694,0.46719953,1938.8,1938.6,0.0011]
[1772991237066,0.46819953,1938.8,1938.6,0.0011]
[1772991237592,1.75768375,1938.8,1938.6,0.0011]
[1772991240600,0.46819953,1938.8,1938.6,0.0011]
[1772991240769,0.001,1938.8,1938.6,0.16264251]
[1772991240969,1.29047237,1938.8,1938.6,0.16264251]
[1772991241609,0.001,1938.8,1938.6,0.16264251]
[1772991243301,0.001,1938.8,1938.6,0.0011]
[1772991243302,0.45825009,1938.8,1938.6,0.0011]
[1772991245385,0.4796416,1938.7,1938.4,0.0011]
[1772991245603,0.4796416,1938.5,1938.1,0.0011]
[1772991245904,0.4796416,1938.5,1938.0,0.00153886]
[1772991247075,0.4796416,1938.5,1938.0,0.16418137]
[1772991247602,0.4796416,1938.3,1938.0,0.00153886]
[1772991249309,0.73117874,1938.4,1938.0,0.16418137]
[1772991250784,0.73117874,1938.3,1938.0,0.16418137]
[1772991252813,1.28985656,1938.2,1938.0,0.00153886]
[1772991252981,2.0210353,1938.2,1938.0,0.00153886]
[1772991253187,1.28985656,1938.2,1938.0,0.00153886]
[1772991253433,0.73117874,1938.1,1938.0,0.00153886]
[1772991255424,0.73117874,1938.0,1937.2,1.2905224]
[1772991255788,0.73117874,1937.9,1937.1,2.74496736]
[1772991256100,0.73117874,1937.9,1937.0,1.29218528]
[1772991256299,0.73117874,1937.9,1937.0,0.00153886]
[1772991256602,0.73117874,1937.9,1937.0,1.29218248]
[1772991257008,0.73117874,1937.9,1937.0,1.29218331]
[1772991257512,0.73117874,1937.7,1937.0,0.00153886]
[1772991259067,1.0348925,1937.2,1936.4,0.87821155]
[1772991259320,1.0348925,1937.2,1936.1,0.065536]
[1772991259321,0.73117874,1936.9,1936.2,1.29117851]
[1772991259616,0.73117874,1936.9,1936.1,2.34997246]
[1772991259617,2.02196767,1936.8,1936.1,2.34997246]
[1772991259837,0.73117874,1936.7,1936.1,3.64121932]
[1772991260115,0.73117874,1936.7,1936.0,0.00153886]
[1772991260330,2.32568143,1936.8,1935.3,3.64175736]
[1772991260331,0.73117874,1936.3,1935.3,3.64175736]
[1772991260700,0.73117874,1936.3,1935.3,2.34997247]
[1772991260900,0.73117874,1936.2,1935.3,2.34997247]
[1772991261128,1.433,1936.5,1935.0,0.00153886]
[1772991261129,0.73117874,1936.0,1935.0,1.29349984]
[1772991261320,0.73117874,1935.8,1935.0,1.29349984]
[1772991261520,0.73117874,1935.8,1935.0,0.00153886]
[1772991261712,0.73117874,1936.0,1935.0,0.00153886]
[1772991262839,0.73117874,1936.3,1935.0,0.00153886]
[1772991263600,0.73117874,1936.1,1935.0,0.00153886]
[1772991263831,0.73117874,1936.0,1935.0,0.00153886]
[1772991266033,0.73117874,1935.9,1935.0,0.00153886]
[1772991266337,0.73117874,1936.1,1935.0,0.00153886]
[1772991268136,0.4796416,1936.4,1935.1,0.26882125]
[1772991268438,0.4796416,1935.6,1934.4,0.26882125]
[1772991268935,0.4796416,1935.6,1934.2,1.31719531]
[1772991268936,0.4796416,1935.5,1934.2,1.29248265]
[1772991269261,0.4796416,1935.2,1934.1,0.26882125]
[1772991269537,0.4796416,1935.2,1934.0,1.5629749]
[1772991269740,0.4796416,1935.2,1934.2,2.54759029]
[1772991269914,0.4796416,1935.2,1934.3,0.26882125]
[1772991270121,0.4796416,1935.2,1934.5,0.26882125]
[1772991270737,0.4796416,1935.5,1934.5,0.26882125]
[1772991272409,0.4796416,1935.5,1934.7,0.26882125]
[1772991272839,1.77130608,1935.5,1934.7,0.26882125]
[1772991273140,0.4610955,1935.4,1934.7,0.26882125]
[1772991273740,0.4610955,1935.7,1934.7,0.26882125]
[1772991274117,0.46263436,1936.0,1934.7,0.26882125]
[1772991274315,0.46263436,1936.0,1934.9,0.26882125]
[1772991274510,0.46263436,1936.0,1935.0,0.26882125]
[1772991275040,0.00153886,1936.0,1935.0,0.26882125]
[1772991276415,0.00153886,1936.0,1935.2,0.26882125]
[1772991276636,0.46263436,1936.0,1935.2,0.26882125]
[1772991277841,0.00153886,1936.0,1935.2,0.26882125]
[1772991278146,0.00153886,1936.0,1935.1,1.29192289]
[1772991278147,0.46263436,1936.0,1935.1,1.29192289]
[1772991278345,0.4610955,1935.8,1934.6,2.72217804]
[1772991278644,0.4610955,1935.8,1934.7,0.26882125]
[1772991281048,0.4610955,1935.6,1934.6,1.29335679]
[1772991281258,0.4610955,1935.5,1934.6,1.29335679]
[1772991282559,0.4610955,1935.5,1934.7,0.26882125]
[1772991283026,0.4610955,1935.5,1934.8,1.29212321]
[1772991283229,0.4610955,1935.4,1934.8,1.29212321]
[1772991284030,0.4610955,1935.4,1934.7,1.56098531]
[1772991284230,0.4610955,1935.4,1934.7,1.29216406]
[1772991285327,0.4610955,1935.3,1934.7,0.0011]
[1772991289261,0.4610955,1935.6,1934.8,0.26882125]
[1772991289755,0.4610955,1935.4,1934.7,0.0011]
[1772991292159,0.4610955,1935.2,1934.7,0.0011]
[1772991293261,0.4610955,1935.4,1934.8,0.26882125]
[1772991294463,0.4610955,1935.7,1935.0,0.26882125]
[1772991294995,0.00153886,1936.0,1935.2,0.26882125]
[1772991295273,0.00153886,1936.0,1935.5,0.26882125]
[1772991295479,0.4610955,1935.9,1935.3,1.187]
[1772991296679,0.4610955,1935.9,1935.4,1.29172264]
[1772991300385,0.00153886,1936.0,1935.4,1.56054389]
[1772991300591,1.29241868,1935.9,1935.5,0.26882125]
[1772991300943,1.29241868,1935.9,1935.4,1.29172264]
[1772991301381,1.29241868,1935.8,1935.4,1.56054389]
[1772991301544,1.29241868,1935.9,1935.4,1.56054389]
[1772991301945,0.00153886,1936.0,1935.5,0.26882125]
[1772991302196,0.4610955,1936.3,1935.6,0.26882125]
[1772991302979,0.48872638,1936.9,1935.6,0.26882125]
[1772991303155,0.48872638,1936.8,1935.6,0.26882125]
[1772991303351,0.49026524,1937.0,1935.7,0.14948499]
[1772991303581,0.00153886,1937.0,1936.0,0.26882125]
[1772991303872,1.29219608,1937.0,1936.2,0.26882125]
[1772991304114,0.48872638,1936.9,1936.3,1.29112224]
[1772991304455,1.29219927,1937.0,1936.3,1.55994349]
[1772991304651,0.00153886,1937.0,1936.3,1.55994349]
[1772991304968,1.2922028,1937.0,1936.3,1.55994349]
[1772991306177,0.48255687,1936.9,1936.3,1.29112224]
[1772991306776,0.48255687,1936.9,1936.2,1.162]
[1772991307659,0.48255687,1936.9,1936.2,2.45317694]
[1772991308281,0.48255687,1936.7,1936.2,2.45317694]
[1772991308973,0.48255687,1936.7,1936.2,2.45318369]
[1772991310766,1.7734497,1936.7,1936.2,2.45318369]
[1772991311657,0.001,1936.8,1936.2,2.72200494]
[1772991312375,0.48255687,1936.7,1936.1,1.29231136]
[1772991312576,0.48255687,1936.7,1936.1,2.46231136]
[1772991312881,1.77341363,1936.7,1936.1,2.46231136]
[1772991314671,1.77353026,1936.6,1936.1,0.0011]
[1772991314869,0.48255687,1936.5,1936.1,0.0011]
[1772991316764,0.48255687,1936.4,1936.1,0.0011]
[1772991317789,0.48255687,1936.7,1936.1,0.26992125]
[1772991321884,1.77346898,1936.7,1936.2,1.29118892]
[1772991322263,0.001,1936.6,1936.2,1.29118892]
[1772991323269,0.48355687,1936.6,1936.1,1.56112677]
[1772991324689,0.48255687,1936.5,1936.1,1.29230552]
[1772991326074,0.48255687,1936.5,1936.1,0.0011]
[1772991326399,0.48255687,1936.4,1936.1,0.0011]
[1772991329390,5.16398381,1936.5,1936.1,0.0011]
[1772991329994,5.64654068,1936.5,1936.1,0.0011]
[1772991331104,0.48255687,1936.4,1936.1,0.0011]
[1772991331676,0.48255687,1936.2,1936.0,0.0011]
[1772991333710,1.29125561,1936.1,1936.0,0.0011]
[1772991335009,1.74690984,1936.1,1936.0,0.0011]
[1772991336793,0.45565423,1936.0,1935.8,0.0011]
[1772991338010,1.74685546,1936.2,1935.8,0.0011]
[1772991342011,0.45565423,1936.5,1935.8,0.46562476]
[1772991342211,0.45565423,1936.4,1935.8,0.46562476]
[1772991342419,1.29112224,1936.3,1935.8,0.46562476]
[1772991342713,1.29106306,1936.4,1935.9,0.46452476]
[1772991343783,0.45565423,1936.5,1935.9,0.46452476]
[1772991344681,1.74665293,1936.5,1936.0,1.75584707]
[1772991345786,0.001,1936.1,1936.0,1.75584707]
[1772991346124,1.29192934,1936.6,1936.1,0.46452476]
[1772991347116,1.29192934,1936.6,1936.1,1.75576819]
[1772991347616,1.74758357,1936.6,1936.1,0.46452476]
[1772991349913,1.74758357,1936.6,1936.1,1.75577784]
[1772991350121,1.74757993,1936.6,1936.1,1.75577784]
[1772991352794,0.001,1936.6,1936.2,0.46452476]
[1772991353720,0.45665423,1936.6,1936.0,0.46452476]
[1772991353924,0.45565423,1936.5,1936.0,0.46452476]
[1772991354524,1.74668748,1936.5,1936.0,1.7558189]
[1772991355322,1.74668748,1936.5,1936.1,0.46452476]
[1772991357804,1.74668748,1936.5,1936.2,0.0011]
[1772991358123,1.74768748,1936.5,1936.2,0.0011]
[1772991359519,0.001,1936.5,1936.2,0.46562476]
[1772991360025,1.29199564,1936.5,1936.2,0.46562476]
[1772991360833,1.74764987,1936.5,1936.2,0.46562476]
[1772991360999,1.74764987,1936.5,1936.2,0.0011]
[1772991361630,0.45565423,1936.4,1936.2,0.0011]
[1772991362023,0.45565423,1936.4,1936.0,0.0011]
[1772991364094,0.001,1936.5,1936.0,0.45202811]
[1772991364506,0.001,1936.8,1936.2,0.45092811]
[1772991364734,0.00153886,1937.0,1936.3,0.45092811]
[1772991366140,0.00153886,1937.0,1936.5,0.47462289]
[1772991366915,0.46217388,1937.0,1936.5,0.47462289]
[1772991368210,1.75284365,1937.0,1936.5,1.76556379]
[1772991369125,1.75283153,1937.0,1936.5,1.76556379]
[1772991369522,0.46217388,1937.0,1936.5,1.76556379]
[1772991369722,0.00153886,1937.0,1936.5,1.2909409]